Cogmind - Beta 14 @@@ ROGUE MODE // 2024.09.12 @ 21:09:38 Player: daxter767676 Result: Destroyed by QR-9PQ(R) with Subdweller Machine Gun Performance ------------- Evolutions (0) 0 Regions Visited (2) 400 Robots Destroyed (6) 30 Value Destroyed (110) 110 Prototype IDs (11) 220 Alien Tech Used (0) 0 Bonus (0) 0 TOTAL SCORE: 760 Bonus ------- None Cogmind --------- Core Integrity 0/250 Matter 271/300 Energy 99/100 System Corruption 0% Temperature Cool (0) Movement Core (50) Location -10/Subcaves Parts ------- > --- POWER (1) -------- (None) > --- PROPULSION (2) --- (None) > --- UTILITY (2) ------ Disposable Heat Sink Improved Terrain Scanner > --- WEAPON (2) ------- (None) > --- INVENTORY (5) ---- Compact Wheel Gun Armor Tractor Beam Peak State ------------ > --- POWER ------------ Light Ion Engine > --- PROPULSION ------- Wheel Compact Wheel > --- UTILITY ---------- Disposable Heat Sink Improved Terrain Scanner > --- WEAPON ----------- Subdweller Laser Assault Rifle > --- INVENTORY -------- Compact Wheel Gun Armor Tractor Beam [Rating: 12] Favorites ----------- Power Ion Engine Engine Ion Engine Propulsion Compact Wheel Leg Aluminum Leg Wheel Compact Wheel Utility Improved Terrain Scanner Device Improved Terrain Scanner Storage Small Storage Unit Weapon Medium Laser Energy Gun Medium Laser Ballistic Gun Assault Rifle Build | -11 -10 -10 ------- Run | Yrd Mat Sub Slots Evolved . | . . . Power . | . . . Propulsion . | . . . Utility . | . . . Weapon . | . . . Parts Attached 13 | 4 3 6 Power 2 | . 1 1 Engine 2 | . 1 1 Core . | . . . Reactor . | . . . Propulsion 4 | 2 . 2 Treads . | . . . Leg . | . . . Wheel 4 | 2 . 2 Hover . | . . . Flight . | . . . Utility 3 | 2 . 1 Device 3 | 2 . 1 Storage . | . . . Processor . | . . . Hackware . | . . . Protection . | . . . Artifact . | . . . Weapon 4 | . 2 2 Energy Gun 3 | . 2 1 Energy Cannon . | . . . Ballistic Gun 1 | . . 1 Ballistic Cannon . | . . . Launcher . | . . . Special Weapon . | . . . Impact Weapon . | . . . Slashing Weapon . | . . . Piercing Weapon . | . . . Special Melee Weapon . | . . . Unidentified Prototypes . | . . . Parts Lost 8 | . . 8 Power 2 | . . 2 Propulsion 3 | . . 3 Utility 1 | . . 1 Weapon 2 | . . 2 Highest Loss Streak 5 | . . 5 To Critical Strikes 1 | . . 1 Average Slot Usage (%) 84 | . 100 70 Engine 12 | . 14 10 Wheel 21 | . 28 15 Device 27 | . 28 27 Energy Gun 21 | . 28 15 Peak Build Rating 12 | 9 9 12 Average Rating 8 | 6 8 9 On Entrance 8 | 6 9 9 Naked Turns . | . . . Heaviest Build 14 | 14 10 13 Greatest Support 32 | 32 32 32 Greatest Overweight (x) . | . . . Average Overweight (x) . | . . . Largest Inventory Capacity 8 | 8 5 5 Average Capacity 5 | 7 5 5 Most Carried 8 | 8 5 5 Average Carried 4 | 7 5 4 Final Capacity 5 | 5 5 5 Final Carried 5 | 5 5 3 Class Distribution -------------------- 93% | Mutant 6% | Scavenger-Mutant Dominant Class ---------------- Mutant | -10/Materials Mutant | -10/Subcaves Resources | -11 -10 -10 ----------- Run | Yrd Mat Sub Matter Collected 288 | 217 15 56 Remotely . | . . . Salvage Created 220 | 119 15 86 Parts 14 | 6 2 6 Haulers Intercepted . | . . . Recyclers Shooed . | . . . Parts Field Recycled . | . . . Retrieved Matter . | . . . Parts Self-Destructed 11 | . . 11 Prevented . | . . . Kills | -11 -10 -10 ------- Run | Yrd Mat Sub Combat Hostiles Destroyed 3 | . 1 2 Guns 3 | . 1 2 Classes Destroyed 4 | 2 1 1 Tunneler 2 | 2 . . Recycler 1 | 1 . . Swarmer 1 | . 1 . Subdweller 2 | . . 2 Best Kill Streak 2 | 2 1 1 Combat Bots Only 1 | . 1 1 Max Kills in Single Turn 1 | 1 1 1 Gunslinging . | . . . Exploded . | . . . Melee . | . . . Uniques/NPCs Destroyed . | . . . Combat | -11 -10 -10 -------- Run | Yrd Mat Sub Hostile Shots Fired 56 | . 4 52 Missed 16 | . 1 15 Damage Taken 785 | . 24 761 Core 269 | . 10 259 Absorbed by Shields . | . . . Core Remaining (%) 100 | 100 . . Volleys Fired 34 | 5 4 25 Largest 2 | 2 2 2 Hottest 110 | 90 90 110 Shots Fired 62 | 10 8 44 Gun 62 | 10 8 44 Cannon . | . . . Launcher . | . . . Special . | . . . Kinetic 8 | . . 8 Thermal 54 | 10 8 36 Explosive . | . . . Electromagnetic . | . . . Robot Hit Streak 11 | 2 3 11 Robot Miss Streak 3 | 3 2 1 Penetration Max . | . . . Secondary Targets . | . . . Shots Hit Robots 41 | 4 4 33 Core Hits 10 | 4 1 5 Critical Kills . | . . . Critical Parts Destroyed . | . . . Critical Strikes 2 | . . 2 Burn 2 | . . 2 Melee Attacks . | . . . Impact . | . . . Slashing . | . . . Piercing . | . . . Sneak Attacks . | . . . Combat Hostiles . | . . . Follow-up Attacks . | . . . Damage Inflicted 588 | 60 56 472 Guns 580 | 60 48 472 Cannons . | . . . Explosions . | . . . Melee . | . . . Ramming 8 | . 8 . Kinetic 104 | . . 104 Thermal 476 | 60 48 368 Explosive . | . . . Electromagnetic . | . . . Impact . | . . . Slashing . | . . . Piercing . | . . . Highest Corruption . | . . . Average Corruption . | . . . Corruption Purged . | . . . Corruption Blocked . | . . . Overload Shots . | . . . Overflow Damage . | . . . Projectiles . | . . . Explosions . | . . . Melee . | . . . Knockbacks . | . . . Impact . | . . . Kinetic . | . . . Secondary . | . . . Self-Inflicted Damage 4 | . 4 . Shots . | . . . Rammed 1 | . 1 . Targets Rammed 1 | . 1 . Kicked . | . . . Crushed . | . . . Highest Temperature 120 | 120 60 2 Average Temperature 38 | 49 25 2 Received Heat Transfer 126 | . . 126 Siege Activations . | . . . Robots Corrupted . | . . . Combat Hostiles . | . . . Parts Fried . | . . . Impact Corruptions . | . . . Robots Melted . | . . . Combat Hostiles . | . . . Parts Melted 4 | . . 4 Heat Transferred 1251 | 161 136 954 Parts Sabotaged . | . . . Parts Stolen . | . . . Parts Stripped . | . . . Power Chain Reactions . | . . . Alert | -11 -10 -10 ------- Run | Yrd Mat Sub Peak Influence 74 | 15 74 . Initial 9 | . 9 . Average 45 | 10 50 . Maximum Alert Level . | . . . Low Security (%) 100 | 100 100 . Level 1 . | . . . Level 2 . | . . . Level 3 . | . . . Level 4 . | . . . Level 5 . | . . . High Security . | . . . Max Security . | . . . Squads Dispatched 2 | . 2 . Investigation . | . . . Extermination . | . . . Reinforcement 2 | . 2 . Assault . | . . . Garrison . | . . . Intercept . | . . . Searches Triggered . | . . . Construction Impeded . | . . . Haulers Reinforced . | . . . Active Scanning Responses . | . . . Cargo Convoy Interrupts . | . . . Stealth | -11 -10 -10 --------- Run | Yrd Mat Sub Distress Signals . | . . . Communications Jammed . | . . . Distress Signals . | . . . Times Spotted 13 | . 7 6 Peak Tracking Total 3 | . 3 3 Tactical Retreats 2 | . 1 1 Traps | -11 -10 -10 ------- Run | Yrd Mat Sub Traps Triggered 1 | . 1 . Indirectly . | . . . Trap Hack Attempts . | . . . Triggered . | . . . Disarmed . | . . . Reprogrammed . | . . . Reused . | . . . Traps Extracted . | . . . Installed . | . . . Triggered . | . . . Machines | -11 -10 -10 ---------- Run | Yrd Mat Sub Machines Disabled 1 | . . 1 Max in Single Turn 1 | . . 1 Machines Repaired . | . . . Machines Dismantled . | . . . Machines Sabotaged . | . . . Overloaded Fab Kills . | . . . Hacking | -11 -10 -10 --------- Run | Yrd Mat Sub Machines Accessed 1 | . . 1 Terminals . | . . . Fabricators . | . . . Repair Stations . | . . . Recycling Units . | . . . Scanalyzers . | . . . Garrison Access . | . . . Total Hacks 1 | . . 1 Successful 1 | . . 1 Failed . | . . . Catastrophic . | . . . Database Lockouts . | . . . Manual . | . . . Terminals . | . . . Fabricators . | . . . Repair Stations . | . . . Recycling Units . | . . . Scanalyzers . | . . . Garrison Access . | . . . Terminal Hacks 1 | . . 1 Derelict Proto ID Bank 1 | . . 1 Fabricator Hacks . | . . . Repair Station Hacks . | . . . Recycling Unit Hacks . | . . . Scanalyzer . | . . . Garrison Access Hacks . | . . . Unauthorized Hacks . | . . . Terminals . | . . . Fabricators . | . . . Repair Stations . | . . . Recycling Units . | . . . Scanalyzers . | . . . Garrison Access . | . . . Data Cores Recovered . | . . . Used . | . . . Hacking Detections . | . . . Full Trace Events . | . . . Feedback Events . | . . . Feedback Blocked . | . . . Robot Schematics Acquired . | . . . Robots Built . | . . . Authchips . | . . . Time . | . . . Total Robot Build Rating . | . . . Part Schematics Acquired . | . . . Parts Built . | . . . Authchips . | . . . Time . | . . . Total Part Build Rating . | . . . Parts Repaired . | . . . Time . | . . . Parts Recycled . | . . . Recycled Matter . | . . . Retrieved Matter . | . . . Retrieved Components . | . . . Parts Scanalyzed . | . . . Part Schematics Acquired . | . . . Parts Damaged . | . . . Bothacking | -11 -10 -10 ------------ Run | Yrd Mat Sub Used RIF Installer . | . . . Robots Hacked . | . . . Non-combat . | . . . Combat . | . . . Robot Hacks Applied . | . . . Relay Couplers Released . | . . . Fabnet Peak Effective % . | . . . Robots Rewired . | . . . Allies Hacked . | . . . Hacks Repelled . | . . . Allies | -11 -10 -10 -------- Run | Yrd Mat Sub Total Allies . | . . . Largest Group . | . . . Highest-Rated Group . | . . . Highest-Rated Ally . | . . . Total Orders . | . . . Ally Attacks . | . . . Total Damage . | . . . Kills . | . . . Allies Corrupted . | . . . Allies Melted . | . . . Intel | -11 -10 -10 ------- Run | Yrd Mat Sub Robot Analysis Total . | . . . Derelict Logs Recovered 1 | . . 1 Drone Launches . | . . . Drone Recoveries . | . . . Exploration | -11 -10 -10 ------------- Run | Yrd Mat Sub Turns Passed 960 | 65 437 458 Spaces Moved 554 | 22 119 413 Core 121 | . . 121 Treads . | . . . Legs 20 | 20 . . Wheels 413 | 2 119 292 Hover . | . . . Flight . | . . . Fastest Speed 50 | 100 100 50 Average Speed 88 | 118 100 83 Slowest Speed 120 | 120 100 100 Overloaded Moves . | . . . Propulsion Burnouts . | . . . Robots Hopped . | . . . Cave-ins Triggered . | . . . Exploration Rate (%) 20 | 3 25 34 Regions Visited 2 Branch Regions 1 Pre-discovered Areas . | . . . Known Exits Taken . | . . . Unknown Exits Taken 2 | 1 1 . Scrap Searched . | . . . Spaces Dug . | . . . Terrain Destroyed . | . . . Melee . | . . . Projectile . | . . . AOE . | . . . Terrain Rammed . | . . . Walls Destroyed . | . . . Machines Disabled . | . . . Actions | -11 -10 -10 --------- Run | Yrd Mat Sub Total 962 | 55 427 480 Wait 348 | 14 301 33 Move 552 | 21 118 413 Hop . | . . . Pick Up 5 | 4 . 1 Fast Attach 6 | 2 3 1 Attach 5 | 2 . 3 Detach 1 | 1 . . Swap 2 | . . 2 Drop 8 | 6 . 2 Fire 34 | 5 4 25 Melee . | . . . Ram 1 | . 1 . Kick . | . . . Crush . | . . . Escape Stasis . | . . . Rewire . | . . . Trap . | . . . Miscellaneous . | . . . Route ------- -11/Scrapyard -10/Materials (discovered 3 exits: [*Min x2] / *Sub) -10/Subcaves History --------- Turn | Location | Event 14 | -11/Scrapyard | Discovered new exit (range 3) 66 | -11/Scrapyard | Entered Materials 66 | -10/Materials | Discovered new exit (range 8) 154 | -10/Materials | Discovered new exit (range 12) 300 | -10/Materials | Build established: Mutant 491 | -10/Materials | Discovered new exit (range 6) 503 | -10/Materials | Entered Subcaves 714 | -10/Subcaves | Visited 4L-MR0's lab 719 | -10/Subcaves | Learned Materials security intel 727 | -10/Subcaves | Found Gun Armor 765 | -10/Subcaves | A swath of the cavern ceiling suddenly collapsed 899 | -10/Subcaves | Core integrity fell below 50% 911 | -10/Subcaves | Core integrity fell below 20% 930 | -10/Subcaves | Lost 5 parts (1p2n2w) 961 | -10/Subcaves | Destroyed by QR-9PQ(R) with Subdweller Machine Gun Last Messages --------------- Cargo Legs Tripod Weapons Platform Flightbrick Gun Armor Tower Shield Power Bank Rainbow Chip VL-GR5's Exoskeleton "Deathgrip" Powered Cannon 00723_ Testing Chamber breached. 00727_ Acquired Gun Armor. A swath of the cavern ceiling suddenly collapses. 00880_ Wheel destroyed. 00883_ Com. Wheel destroyed. 00887_ Lgt. Ion Engine destroyed. 00892_ Critical hit (Destroy). 00892_ Sub. Laser destroyed. 00899_ Assault Rifle destroyed. B6-G8T(R) emerges from concealment. Map ----- +----------------------------------------------------+ | | | | | | | | | | | | | ?????????????????????????????????????????????????? | | ?????????????????????????????????????????????????? | | ?????????????????????????????????????????????????? | | ?????????????????????????????????????????????????? | | ??????????????#??????????????????????????????????? | | ?????????????????????????????????????????????????? | | ?????????????????????????????????????????????????? | | ?????????????????????????????????????????????????? | | ????????????????????????#????????????????????????? | | ?????????????????????????????????????????????????? | | ???????????????????????????????????#?????????????# | | ????????#??????????#??????????#??????????????????? | | ?????????????????#???????????????????????????????? | | ?????????????????????????????????????????????????? | | ??????????????????###???####????#????????????????? | | ????????????####### ##??# ###????????#####??????? | | ????###?????# #### ##??????## ######## | | ???## #?####### #?????## ## | | ???# ### ##?## ### #????## | | ???# ## #### #?####@ ###????# | | ???## ## ##??## R ##?????# | | ????## #?## #?????# # # | | ??##### ### #?????# ## | | ?## # #### ######### #? | | ## #??# ## ## #? | | # # ##?## ##? | | ## #### ## ##?## ## " ###?? | | # #??#### ## #??# #### """###???? | | ## #?????# #####??## ##########??# "##????#? | | ## #?????###??#????#######???????????# "##??????? | | ?# ##????????#????????????????????????# "#??????#? | | ?###??????????????????#???????????????#"##???????? | | ????#???????????#?????????????????????"""????????# | | ??????????#????????????#??????????????# ????????" | | ???????????????????????????????????????# ???????? | | ??????????????????#?????????????????????#???? "??? | | ???????????????????????????????????????????? ""??? | | ????????????????????????????????????????????#""??? | | ????????????#???????????????????????????????#""#?? | | ????????????????????????????????????????????# " ?? | | ????????????????????????????????????????????# ## | | ?????????????????????????????????????????????# # | | ?????????????????????????????????????????????# | | ?????????????????????????????????????????????# | +----------------------------------------------------+ Best States ------------- Heat Dissipation 25 Coolant Potential 50 Energy Generation 10 Energy Capacity 250 Matter Stores 300 Matter Capacity 300 Sight Range 16 Terrain Scan Range 16 Terrain Scan Density 10 Evasion (%) 50 Item Schematics ----------------- None Robot Schematics ------------------ None Fabricated ------------ Nothing Alien Tech Used ----------------- None Achievements -------------- None Challenges ------------ None Game ------ Seed ExpertEtherialComputer Manual? 0 Play Time 00:08:45 Cumulative 126.1 hours Start 2024.09.12 @ 21:00:22 End 2024.09.12 @ 21:09:38 Sessions 1 Manual Loads 0 Difficulty Rogue Special Mode None Game No. 125 Rogue 123 Adventurer 2 Explorer 0 Win Type - Total 0 Types 0/0/0/0/0/0/0/0/0 Lore% 56 Gallery% 57 Achievement% 42 Wizard Run 0 Options --------- Layout 2 ASCII 0 Keyboard 1 Movement Vi Keybinds 0 Fullscreen 1 Font 24/Smallcaps Map View 50x44 Zoom Use 0% Tactical HUD 1 Map Filters NONE Filters NONE Steam SD RUN: 492c791b-c599-4d23-ace7-19f437ca6509